bitfinex/quotes_SOLUSD_20251208
["timestamp","ask_amount","ask_price","bid_price","bid_amount"]
[1765218640712,8.12,135.1,135.09,6.08035531]
[1765218640886,8.12,135.1,135.09,13.48282773]
[1765218641088,8.12,135.1,135.09,14.19282773]
[1765218641281,8.12,135.1,135.09,6.08035531]
[1765218641595,8.12,135.1,135.07,0.71]
[1765218641596,8.82,135.1,135.07,7.40338387]
[1765218641923,9.50994492,135.09,135.07,6.08035531]
[1765218642082,9.50994492,135.09,135.01,7.40665294]
[1765218642083,8.80994492,135.07,135.01,7.40665294]
[1765218642413,8.12,135.07,135.06,6.08035531]
[1765218642591,8.12,135.07,135.05,7.40423448]
[1765218642796,8.12,135.07,135.06,6.08035531]
[1765218643187,0.7,135.1,135.06,6.08035531]
[1765218643393,9.50994492,135.1,135.09,6.08035531]
[1765218644106,8.80994492,135.1,135.09,6.08035531]
[1765218645303,8.80994492,135.11,135.09,6.08035531]
[1765218645493,8.80994492,135.11,135.1,6.08035531]
[1765218645694,9.50994492,135.11,135.1,6.08035531]
[1765218645997,9.50994492,135.11,135.07,8.11337976]
[1765218645998,9.50994492,135.11,135.05,7.40450968]
[1765218646197,9.50994492,135.11,135.08,6.08035531]
[1765218646198,5.64547533,135.1,135.08,6.08035531]
[1765218646409,8.12,135.09,135.07,7.40356852]
[1765218646606,8.12,135.09,135.05,18.51083516]
[1765218646820,8.80994492,135.07,135.0,0.71]
[1765218646996,13.06547533,135.06,135.0,0.71]
[1765218647202,8.80994492,135.04,135.0,0.71]
[1765218647407,8.12,135.03,135.0,0.71]
[1765218647610,8.12,135.03,135.02,6.08035531]
[1765218648104,8.12,135.03,135.02,6.79035531]
[1765218648415,42.21753077,135.09,135.02,6.79035531]
[1765218648416,8.12,135.05,135.02,6.79035531]
[1765218648616,8.12,135.05,135.04,6.08035531]
[1765218648992,8.12,135.05,135.03,6.08035531]
[1765218649295,8.80994492,135.06,135.03,6.08035531]
[1765218649501,8.12,135.07,135.04,0.71]
[1765218649707,16.92994492,135.07,135.05,6.08035531]
[1765218650096,16.92994492,135.07,135.06,6.08035531]
[1765218650412,8.25209529,135.14,135.06,6.08035531]
[1765218650413,6.88615072,135.12,135.06,6.08035531]
[1765218650594,8.80994492,135.1,135.07,0.71]
[1765218651324,4.95835343,135.09,135.07,0.71]
[1765218651726,4.95835343,135.09,135.08,6.08035531]
[1765218652215,8.12,135.11,135.08,14.14337574]
[1765218652518,8.12,135.11,135.1,6.08035531]
[1765218653022,8.12,135.11,135.07,8.0635236]
[1765218653187,8.12,135.11,135.1,6.08035531]
[1765218654319,8.12,135.11,135.1,14.14227981]
[1765218654523,8.12,135.11,135.1,6.74035531]
[1765218654820,8.12,135.11,135.1,14.14227981]
[1765218655024,16.92994492,135.13,135.1,6.08035531]
[1765218655226,16.92994492,135.13,135.12,6.08035531]
[1765218655401,29.95820374,135.13,135.09,8.06234569]
[1765218655607,25.00022613,135.13,135.11,6.08035531]
[1765218655802,8.12,135.13,135.12,6.08035531]
[1765218656005,8.12,135.15,135.12,13.4811842]
[1765218656319,8.12,135.15,135.14,6.08035531]
[1765218656320,13.07570387,135.15,135.14,6.08035531]
[1765218656511,8.12,135.15,135.14,6.08035531]
[1765218657496,18.49089114,135.21,135.14,6.74035531]
[1765218657697,13.74344057,135.2,135.17,6.08035531]
[1765218657933,0.67,135.19,135.15,6.08035531]
[1765218658128,14.43338549,135.19,135.16,6.08035531]
[1765218658427,8.80994492,135.17,135.16,6.08035531]
[1765218658673,16.92994492,135.17,135.16,6.08035531]
[1765218659327,8.12,135.17,135.16,6.08035531]
[1765218659506,8.0664497,135.2,135.16,6.74035531]
[1765218659507,8.12,135.19,135.16,6.74035531]
[1765218659695,8.12,135.19,135.18,6.08035531]
[1765218659891,8.12,135.19,135.18,6.75035531]
[1765218660107,8.12,135.19,135.18,6.08035531]
[1765218660309,8.12,135.19,135.18,14.14789932]
[1765218660620,8.12,135.19,135.18,6.75035531]
[1765218660829,8.80994492,135.22,135.18,14.14789932]
[1765218661036,34.69003013,135.24,135.2,6.08035531]
[1765218661239,6.79035531,135.21,135.16,6.08035531]
[1765218661534,8.80994492,135.19,135.16,6.08035531]
[1765218661852,8.80994492,135.19,135.12,6.08035531]
[1765218661853,8.1,135.19,135.18,6.08035531]
[1765218662547,15.49699681,135.19,135.18,6.08035531]
[1765218662740,16.20699681,135.19,135.18,6.08035531]
[1765218662917,8.81,135.19,135.18,6.08035531]
[1765218663626,8.1,135.19,135.18,6.08035531]
[1765218664515,16.20699681,135.19,135.17,6.08035531]
[1765218664839,8.1,135.19,135.18,6.08035531]
[1765218665534,8.80994492,135.18,135.16,6.08035531]
[1765218665722,16.20699681,135.19,135.16,6.08035531]
[1765218665723,8.1,135.19,135.17,6.08035531]
[1765218665908,16.20701862,135.19,135.17,6.08035531]
[1765218666421,16.20701862,135.19,135.16,6.08035531]
[1765218666422,9.51994492,135.18,135.16,6.08035531]
[1765218666622,9.51994492,135.18,135.15,6.08035531]
[1765218666833,9.51994492,135.18,135.16,6.08035531]
[1765218667034,9.51994492,135.18,135.17,6.08035531]
[1765218667526,8.80994492,135.18,135.17,6.08035531]
[1765218667726,8.1,135.19,135.17,6.08035531]
[1765218667919,8.1,135.19,135.18,6.08035531]
[1765218668525,8.1,135.19,135.18,14.14789932]
[1765218668861,16.20699681,135.19,135.14,7.39963988]
[1765218669141,16.20699681,135.19,135.15,6.08035531]
[1765218669142,8.80994492,135.18,135.15,6.08035531]
[1765218669343,9.51994492,135.18,135.15,6.08035531]
[1765218670021,8.10809129,135.17,135.15,6.08035531]
[1765218670223,8.1,135.16,135.15,6.08035531]
[1765218671447,17.61994492,135.16,135.13,6.08035531]
[1765218671628,9.51994492,135.15,135.12,6.08035531]
[1765218672033,8.80994492,135.13,135.11,6.08035531]
[1765218672243,8.1,135.12,135.11,6.08035531]
[1765218672816,0.71,135.19,135.12,7.40059632]
[1765218673025,8.80994492,135.18,135.17,6.08035531]
[1765218673624,15.49746486,135.19,135.17,6.08035531]
[1765218673826,8.1,135.19,135.18,6.08035531]
[1765218674027,13.04650492,135.19,135.18,6.08035531]
[1765218674434,8.1,135.19,135.18,6.75035531]
[1765218674720,7.39552749,135.22,135.18,14.14789932]
[1765218675030,16.20547241,135.22,135.21,6.08035531]
[1765218675225,16.20547241,135.22,135.16,0.67]
[1765218675226,9.51994492,135.21,135.16,0.67]
[1765218675530,9.51994492,135.21,135.18,6.08035531]
[1765218675718,8.80994492,135.19,135.17,6.08035531]
[1765218675923,8.1,135.18,135.17,6.08035531]
[1765218676144,15.49754401,135.18,135.17,6.08035531]
[1765218676533,24.30748893,135.18,135.16,6.08035531]
[1765218676843,16.90994492,135.18,135.17,6.08035531]
[1765218677057,8.1,135.18,135.17,6.08035531]
[1765218677458,8.1,135.18,135.17,14.1484466]
[1765218678162,8.1,135.21,135.17,14.1484466]
[1765218678360,8.1,135.21,135.2,6.08035531]
[1765218678667,8.1,135.21,135.19,6.08035531]
[1765218678873,8.1,135.21,135.2,6.08035531]
[1765218679977,8.80994492,135.24,135.2,14.14680501]
[1765218680152,8.1,135.23,135.22,6.08035531]
[1765218680761,8.80994492,135.22,135.18,6.08035531]
[1765218681073,8.80994492,135.22,135.11,6.08035531]
[1765218681074,8.80994492,135.18,135.11,6.08035531]
[1765218681390,8.80994492,135.18,135.1,7.4019044]
[1765218681391,8.80994492,135.11,135.07,6.08035531]
[1765218681586,8.80994492,135.09,135.05,6.08035531]
[1765218681749,7.40302043,135.08,135.05,6.08035531]
[1765218681949,8.1,135.07,135.05,13.48500801]
[1765218682151,8.1,135.07,135.05,14.19500801]
[1765218682576,8.1,135.07,135.02,0.71]
[1765218682779,8.78,135.07,135.04,7.40520703]
[1765218683078,8.1,135.07,135.04,13.48556234]
[1765218684462,8.78,135.07,135.03,13.4859541]
[1765218684665,16.18358434,135.07,135.03,14.1959541]
[1765218684872,16.18362596,135.07,135.03,13.4859541]
[1765218685075,0.68,135.06,135.02,13.486278]
[1765218685385,0.68,135.06,135.02,13.48646116]
[1765218685888,8.08414201,135.06,135.02,13.48649785]
[1765218686377,9.48994492,135.05,135.01,13.48716652]
[1765218686597,14.18035531,135.07,135.02,14.19633956]
[1765218686598,8.1,135.04,135.02,14.19633956]
[1765218686950,8.1,135.04,135.02,13.48633956]
[1765218687151,8.1,135.04,135.02,6.08035531]
[1765218687380,8.1,135.04,135.02,13.4866507]
[1765218687953,8.78,135.04,135.0,6.79035531]
[1765218688179,8.78,135.04,135.0,6.08035531]
[1765218688488,16.18529263,135.04,135.0,6.79035531]
[1765218688653,16.18529263,135.04,135.0,14.19736392]
[1765218688971,8.78,135.04,135.01,7.40667788]
[1765218689170,8.1,135.04,135.01,13.48703319]
[1765218689477,8.78,135.04,135.01,13.48703319]
[1765218689962,8.78,135.04,135.01,6.08035531]
[1765218690159,16.18535521,135.04,135.01,6.08035531]
[1765218690362,16.18535521,135.04,134.99,0.71]
[1765218690363,0.68,135.03,134.99,6.08035531]
[1765218690557,0.68,135.03,134.99,13.48830142]
[1765218690978,8.78,135.04,135.01,6.08035531]
[1765218691195,17.58994492,135.04,135.01,13.48714645]
[1765218691562,6.76035531,135.07,135.02,6.08035531]
[1765218691873,6.76035531,135.07,134.97,16.308864]
[1765218691874,7.40466493,135.05,134.99,19.22932533]
[1765218692052,8.12,135.04,135.0,6.08035531]
[1765218692252,8.12,135.04,135.01,6.08035531]
[1765218692457,8.12,135.04,135.01,6.79035531]
[1765218692657,8.12,135.04,135.02,13.48665932]
[1765218692857,8.12,135.04,135.03,6.08035531]
[1765218693058,8.12,135.04,135.03,6.79035531]
[1765218693282,8.12,135.06,135.03,6.79035531]
[1765218693477,16.92994492,135.06,135.03,6.79035531]
[1765218693689,16.92994492,135.06,135.03,6.08035531]
[1765218694161,16.92994492,135.06,135.05,6.08035531]
[1765218694162,8.12,135.06,135.05,6.08035531]
[1765218694461,16.89206576,135.1,135.05,6.08035531]
[1765218694667,8.12,135.09,135.07,9.53130071]
[1765218695098,8.12,135.09,135.08,9.53130071]
[1765218696290,8.12,135.09,135.08,17.64432114]
[1765218696494,8.12,135.12,135.08,17.64432114]
[1765218696669,8.12,135.12,135.11,9.53130071]
[1765218697196,8.07990419,135.14,135.11,9.53130071]
[1765218697360,8.12,135.13,135.11,9.53130071]
[1765218697561,8.80994492,135.12,135.07,7.40346805]
[1765218697766,8.8,135.13,135.11,9.53130071]
[1765218697767,8.12,135.13,135.11,9.53130071]
[1765218698068,8.12,135.13,135.12,9.53130071]
[1765218698885,8.12,135.13,135.12,10.24130071]
[1765218699085,0.68,135.17,135.12,10.24130071]
[1765218699086,7.39877706,135.16,135.12,17.6421296]
[1765218699389,16.888199,135.17,135.15,9.53130071]
[1765218699688,8.12,135.16,135.15,9.53130071]
[1765218700377,16.19863865,135.16,135.14,9.53130071]
[1765218700784,15.51863865,135.16,135.14,9.53130071]
[1765218701260,8.12,135.16,135.15,9.53130071]
[1765218701458,8.12,135.16,135.13,8.11009609]
[1765218701689,8.12,135.16,135.15,9.53130071]
[1765218702886,15.51865941,135.16,135.14,9.53130071]
[1765218704174,8.12,135.16,135.15,9.53130071]
[1765218705286,16.19863865,135.16,135.13,9.53130071]
[1765218705491,9.48994492,135.15,135.1,7.4017357]
[1765218705886,9.48994492,135.15,135.12,9.53130071]
[1765218706391,9.48994492,135.15,135.04,37.02530893]
[1765218706392,8.80994492,135.13,135.07,0.71]
[1765218706566,15.50082889,135.12,135.09,9.53130071]
[1765218706963,8.1,135.13,135.11,9.53130071]
[1765218707190,8.1,135.13,135.12,9.53130071]
[1765218707991,8.1,135.13,135.12,10.24130071]
[1765218709065,8.1,135.13,135.12,17.6421296]
[1765218709263,7.39858151,135.17,135.12,17.6421296]
[1765218709467,8.1,135.16,135.15,9.53130071]
[1765218711586,7.39776212,135.18,135.15,10.24130071]
[1765218711901,8.1,135.18,135.17,9.53130071]
[1765218712074,8.1,135.18,135.15,0.71]
[1765218712281,9.51994492,135.17,135.14,9.53130071]
[1765218712490,15.49796145,135.18,135.15,9.53130071]
[1765218712682,16.20796145,135.18,135.15,9.53130071]
[1765218712893,16.20796145,135.18,135.14,0.71]
[1765218713096,16.20796145,135.18,135.15,9.53130071]
[1765218713286,9.51994492,135.17,135.14,9.53130071]
[1765218714389,8.80994492,135.17,135.15,9.53130071]
[1765218714890,8.80994492,135.17,135.14,9.53130071]
[1765218715402,7.39863865,135.16,135.14,10.24130071]
[1765218717697,8.80994492,135.17,135.14,10.24130071]
[1765218717901,7.39821809,135.17,135.14,10.24130071]
[1765218718098,7.39821809,135.17,135.15,9.53130071]
[1765218718294,7.39821809,135.17,135.14,10.24130071]
[1765218718680,7.39821809,135.17,135.14,17.64103081]
[1765218720174,0.71,135.16,135.11,18.50268882]
[1765218720378,9.51994492,135.16,135.12,10.24130071]
[1765218720706,8.1,135.15,135.12,9.53130071]
[1765218720906,8.1,135.15,135.12,10.24130071]
[1765218721276,8.81,135.15,135.12,9.53130071]
[1765218721490,8.81,135.15,135.12,10.24130071]
[1765218721997,16.20941198,135.15,135.12,0.71]
[1765218722308,19.05124563,135.14,135.08,0.71]
[1765218722482,18.34124563,135.12,135.07,9.53130071]
[1765218722684,8.1,135.11,135.1,9.53130071]
[1765218722878,8.1,135.11,135.09,9.53130071]
[1765218723080,0.71,135.1,135.05,19.22155568]
[1765218723285,0.71,135.1,135.06,10.24130071]
[1765218723492,0.71,135.1,135.04,7.40513947]
[1765218723493,8.80994492,135.09,135.04,7.40513947]
[1765218723693,8.1,135.08,135.04,16.93644018]
[1765218723893,7.40356852,135.07,135.04,9.53130071]
[1765218724096,7.40356852,135.07,135.04,10.24130071]
[1765218724295,7.40356852,135.07,135.04,8.11518416]
[1765218724511,16.2132204,135.08,135.04,17.64648487]
[1765218724895,0.71,135.07,135.03,16.93701737]
[1765218725097,44.25207219,135.08,135.04,0.71]
[1765218725296,0.71,135.07,135.04,9.53130071]
[1765218725598,15.5032204,135.08,135.04,17.64647332]
[1765218725793,16.2132204,135.08,135.04,17.64647332]
[1765218726401,16.2132204,135.08,135.04,0.71]
[1765218726603,16.2132204,135.08,135.01,9.53130071]
[1765218726604,9.53130071,135.06,135.01,9.53130071]
[1765218726794,8.1,135.05,135.01,9.53130071]
[1765218727001,8.8,135.05,135.02,9.53130071]
[1765218727202,8.1,135.05,135.02,17.64755844]
[1765218727398,8.1,135.05,135.04,7.40521327]
[1765218727706,8.1,135.05,135.04,9.53130071]
[1765218727909,8.1,135.05,135.03,17.64682373]
[1765218728111,8.10389726,135.07,135.03,8.11552302]
[1765218728314,8.1,135.06,135.04,10.24130071]
[1765218729217,8.1,135.06,135.03,7.40552302]
[1765218729218,8.8,135.06,135.03,16.93682373]
[1765218729418,8.1,135.06,135.03,17.64682373]
[1765218729714,8.1,135.06,135.04,9.53130071]
[1765218729913,8.1,135.06,135.05,9.53130071]
[1765218730090,8.1,135.06,135.05,10.24130071]
[1765218730295,8.1,135.08,135.05,10.24130071]
[1765218730494,8.1,135.08,135.06,9.53130071]
[1765218730708,8.1,135.08,135.06,10.24130071]
[1765218730902,16.90994492,135.11,135.07,10.24130071]
[1765218731100,24.3117889,135.11,135.08,9.53130071]
[1765218731309,8.1,135.11,135.09,9.53130071]
[1765218732923,0.7,135.1,135.07,9.53130071]
[1765218733130,7.40302043,135.08,135.03,0.71]
[1765218733426,15.52302043,135.08,135.06,9.53130071]
[1765218734221,8.82,135.08,135.05,9.53130071]
[1765218734922,8.82,135.08,135.06,9.53130071]
[1765218735225,16.22329602,135.08,135.04,8.11515586]
[1765218735409,8.12,135.08,135.07,9.53130071]
[1765218735922,19.20121641,135.13,135.07,10.24130071]
[1765218736097,29.27682821,135.12,135.09,9.53130071]
[1765218736306,24.33077381,135.12,135.09,9.53130071]
[1765218736508,0.7,135.11,135.07,9.53130071]
[1765218736709,18.34124563,135.1,135.05,9.53130071]
[1765218736918,13.0673979,135.09,135.05,9.53130071]
[1765218737121,13.7673979,135.09,135.05,9.53130071]
[1765218737301,8.80994492,135.07,135.05,9.53130071]
[1765218737628,8.12,135.06,135.05,9.53130071]
[1765218737830,8.12,135.06,135.04,9.53130071]
[1765218738120,8.12,135.06,135.01,16.308864]
[1765218738121,8.12,135.06,135.05,9.53130071]
[1765218738324,8.12,135.09,135.05,16.93596564]
[1765218738534,6.86287209,135.14,135.08,9.53130071]
[1765218738729,15.52028121,135.13,135.11,9.53130071]
[1765218738929,8.80994492,135.11,135.05,7.40466493]
[1765218739109,8.12,135.1,135.07,9.53130071]
[1765218739302,16.21241734,135.09,135.06,9.53130071]
[1765218739625,16.21241734,135.09,135.07,9.53130071]
[1765218739626,8.10247242,135.09,135.07,9.53130071]
[1765218739826,26.62569245,135.1,135.01,24.408864]
[1765218739827,15.52212706,135.1,135.08,9.53130071]
[1765218740002,15.52212706,135.1,135.07,9.53130071]
[1765218740402,16.22212706,135.1,135.06,9.53130071]
[1765218740605,34.72693831,135.1,135.06,9.53130071]
[1765218740807,9.50994492,135.09,135.06,9.53130071]
[1765218741212,0.72,135.08,135.06,9.53130071]
[1765218741429,8.12,135.07,135.06,9.53130071]
[1765218743529,15.52356852,135.07,135.06,9.53130071]
[1765218743917,8.12,135.07,135.06,9.53130071]
[1765218744940,7.40188543,135.11,135.06,17.59541739]
[1765218745234,8.12,135.1,135.09,9.53130071]
[1765218746643,16.24206008,135.1,135.06,9.53130071]
[1765218746825,0.72,135.09,135.06,9.53130071]
[1765218747212,0.72,135.09,135.07,9.53130071]
[1765218747408,8.12269507,135.09,135.07,9.53130071]
[1765218748215,8.12269507,135.09,135.04,7.4050027]
[1765218748216,7.40269507,135.09,135.04,7.4050027]
[1765218748514,0.72,135.08,135.05,9.53130071]
[1765218748715,8.12,135.07,135.05,9.53130071]
[1765218750229,15.52362177,135.07,135.05,9.53130071]
[1765218750743,8.12,135.07,135.05,9.53130071]
[1765218751245,15.52383115,135.07,135.05,9.53130071]
[1765218751624,0.72,135.06,135.03,9.53130071]
[1765218751846,0.72,135.06,135.0,7.40723012]
[1765218752142,0.72,135.06,135.02,9.53130071]
[1765218752338,0.72,135.06,135.01,8.06678392]
[1765218752339,0.72,135.06,135.01,10.19130071]
[1765218752544,9.53130071,135.04,134.97,0.66]
[1765218752756,8.80994492,135.01,134.97,9.53130071]
[1765218752924,9.53130071,135.02,134.97,9.53130071]
[1765218752925,8.12,135.0,134.97,9.53130071]
[1765218753126,8.12,135.0,134.98,9.53130071]
[1765218753530,15.52783341,135.0,134.98,9.53130071]
[1765218753871,8.80994492,134.99,134.93,16.308864]
[1765218754035,8.80994492,134.99,134.97,9.53130071]
[1765218754233,8.80994492,134.99,134.95,0.66]
[1765218754733,9.52994492,134.99,134.97,6.09204339]
[1765218755851,16.93798996,134.99,134.97,6.09204339]
[1765218756049,16.93798996,134.99,134.95,8.06993618]
[1765218756278,16.93798996,134.99,134.97,6.09204339]
[1765218757053,16.21798996,134.99,134.97,6.09204339]
[1765218757353,8.80994492,134.99,134.98,6.09204339]
[1765218757526,8.12,135.0,134.98,6.09204339]
[1765218757723,8.12,135.02,134.99,6.75204339]
[1765218757952,8.12,135.02,135.01,6.09204339]
[1765218758755,8.80994492,135.06,135.01,6.75204339]
[1765218758945,8.80994492,135.06,135.03,6.09204339]
[1765218758946,8.12,135.05,135.03,6.09204339]
[1765218759450,7.40324586,135.08,135.04,6.75204339]
[1765218759652,8.12,135.07,135.05,6.09204339]
[1765218759858,8.12,135.07,135.06,6.09204339]
[1765218760060,8.12,135.07,135.05,6.09204339]
[1765218760429,8.12,135.07,135.06,6.09204339]
[1765218760629,8.12,135.07,135.05,6.09204339]
[1765218760927,8.12,135.07,135.04,8.06517599]
[1765218761135,8.12,135.07,135.06,6.09204339]
[1765218762061,0.72,135.1,135.04,0.66]
[1765218762266,8.12,135.08,135.06,6.09204339]
[1765218762563,8.12,135.08,135.03,7.40554144]
[1765218762729,0.72,135.07,135.03,6.09204339]
[1765218762925,0.72,135.07,135.04,6.09204339]
[1765218763127,16.92994492,135.08,135.05,6.09204339]
[1765218763357,17.64994492,135.08,135.05,6.09204339]
[1765218763652,0.72,135.07,135.04,6.09204339]
[1765218763950,18.50617733,135.1,135.05,6.09204339]
[1765218764154,22.60400311,135.09,135.05,6.09204339]
[1765218764460,11.04610158,135.08,135.02,0.66]
[1765218764757,4.95405819,135.08,135.06,6.09204339]
[1765218764948,22.40090739,135.12,135.04,7.40519773]
[1765218764949,6.16287209,135.14,135.07,6.09204339]
[1765218765148,6.16287209,135.14,135.08,0.66]
[1765218765149,20.4784747,135.13,135.08,0.66]
[1765218765348,4.95819349,135.12,135.1,6.09204339]
[1765218766057,4.95819349,135.12,135.11,6.09204339]
[1765218766268,12.3590496,135.12,135.04,24.408864]
[1765218766554,8.12085611,135.12,135.1,6.09204339]
[1765218767234,13.08135535,135.12,135.1,6.09204339]
[1765218767456,13.08135535,135.12,135.09,6.09204339]
[1765218767655,5.68041337,135.12,135.11,6.09204339]
[1765218767960,4.96041337,135.12,135.11,6.09204339]
[1765218768166,20.48253919,135.13,135.11,6.09204339]
[1765218768334,0.72,135.12,135.11,6.09204339]
[1765218768538,0.72,135.12,135.09,6.09204339]
[1765218768849,5.68159197,135.12,135.09,6.09204339]
[1765218769160,8.80994492,135.11,135.08,6.09204339]
[1765218769341,8.84,135.1,135.08,6.09204339]
[1765218770375,16.24205444,135.1,135.08,6.09204339]
[1765218770934,34.02686569,135.1,135.0,18.51766244]
[1765218771245,6.09204339,135.07,134.99,8.06751928]
[1765218771446,4.9613102,135.07,135.05,6.09204339]
[1765218771650,8.12,135.06,135.0,0.67]
[1765218771960,8.12,135.06,135.04,6.09204339]
[1765218772864,15.52412396,135.06,135.03,6.09204339]
[1765218773040,0.68,135.05,135.02,6.09204339]
[1765218773441,8.80994492,135.04,135.01,6.09204339]
[1765218773671,8.12,135.03,135.01,6.76204339]
[1765218774150,8.12,135.03,135.02,6.09204339]
[1765218774353,8.12,135.03,135.01,6.09204339]
[1765218775167,8.12,135.03,135.02,6.09204339]
[1765218775371,8.12,135.03,135.02,6.76204339]
[1765218776160,8.12,135.05,135.02,6.76204339]
[1765218776470,8.12,135.05,135.03,6.09204339]
[1765218778056,8.8,135.05,135.03,6.09204339]
[1765218778250,8.12,135.05,135.03,6.09204339]
[1765218778455,8.12,135.05,135.03,6.76204339]
[1765218778781,8.12,135.05,135.04,6.09204339]
[1765218779846,8.12,135.05,135.04,6.76204339]
[1765218780268,105.2,135.08,135.04,14.16725666]
[1765218780465,8.12,135.07,135.05,6.09204339]
[1765218780655,8.12,135.07,135.06,6.09204339]
[1765218780967,8.12,135.07,135.06,6.76204339]
[1765218781577,8.12,135.07,135.05,6.09204339]
[1765218781760,8.12,135.07,135.04,14.16725666]
[1765218782154,8.12,135.07,135.05,6.09204339]
[1765218782356,16.92994492,135.1,135.06,6.09204339]
[1765218782549,8.12,135.1,135.08,6.09204339]
[1765218782775,8.12,135.1,135.09,6.09204339]
[1765218783476,7.40064054,135.13,135.09,6.76204339]
[1765218783781,8.12,135.12,135.1,6.09204339]
[1765218784175,16.22094581,135.12,135.07,0.67]
[1765218784380,6.09204339,135.1,135.03,7.4056805]
[1765218784554,6.09204339,135.1,135.05,6.09204339]
[1765218784555,8.12,135.09,135.05,6.09204339]
[1765218784753,8.82,135.09,135.05,6.09204339]
[1765218784953,8.82,135.09,135.06,6.09204339]
[1765218785360,9.50994492,135.08,135.04,6.09204339]
[1765218785873,0.7,135.07,135.04,6.09204339]
[1765218786068,8.12,135.06,135.04,6.09204339]
[1765218787159,8.80994492,135.08,135.05,6.76204339]
[1765218787160,8.12,135.08,135.05,6.76204339]
[1765218787374,4.95300258,135.1,135.07,6.09204339]
[1765218787578,8.12,135.11,135.09,6.09204339]
[1765218788083,15.52142849,135.11,135.08,6.09204339]
[1765218788289,8.12,135.11,135.1,6.09204339]
[1765218788581,8.12,135.13,135.1,6.09204339]
[1765218788779,8.12,135.13,135.11,6.09204339]
[1765218789192,8.12,135.13,135.12,6.09204339]
[1765218790269,8.12,135.15,135.12,14.16287228]
[1765218790470,8.12,135.15,135.13,6.09204339]
[1765218791091,8.12,135.15,135.14,6.09204339]
[1765218791807,47.05681234,135.19,135.14,6.76204339]
[1765218791808,8.80994492,135.19,135.14,6.76204339]
[1765218792016,8.12,135.18,135.17,6.09204339]
[1765218792713,15.51754401,135.18,135.16,6.09204339]
[1765218792865,0.7,135.17,135.12,8.07049958]
[1765218793064,0.7,135.17,135.14,6.09204339]
[1765218793779,8.80994492,135.16,135.13,6.09204339]
[1765218793987,8.80994492,135.16,135.09,34.81447082]
[1765218793988,8.12,135.15,135.12,6.09204339]
[1765218794189,7.3997336,135.14,135.11,6.09204339]
[1765218794371,8.0997336,135.14,135.11,6.09204339]
[1765218794782,15.51933858,135.15,135.12,6.09204339]
[1765218794990,16.21933858,135.15,135.12,6.09204339]
[1765218795176,15.51933858,135.15,135.12,6.09204339]
[1765218795483,8.12,135.15,135.13,6.76204339]
[1765218795690,8.12,135.15,135.14,6.09204339]
[1765218795894,8.12,135.15,135.13,6.76204339]
[1765218796596,8.12,135.15,135.14,6.09204339]
[1765218797413,8.12,135.15,135.14,6.76204339]
[1765218798274,8.12,135.15,135.14,14.16177699]
[1765218798475,8.1,135.17,135.14,14.16177699]
[1765218798685,8.1,135.17,135.16,6.09204339]
[1765218799584,8.1,135.17,135.15,6.09204339]
[1765218799974,8.1,135.17,135.16,6.09204339]
[1765218800199,7.39717281,135.19,135.16,6.09204339]
[1765218800403,8.0966555,135.2,135.17,6.09204339]
[1765218800588,8.1,135.19,135.17,6.09204339]
[1765218802227,8.1,135.19,135.18,6.09204339]
[1765218802378,8.1,135.19,135.17,6.09204339]
[1765218803286,8.1,135.19,135.16,8.06854095]
[1765218803287,0.68,135.18,135.16,6.09204339]
[1765218803613,0.68,135.18,135.15,6.09204339]
[1765218804107,8.80994492,135.17,135.13,6.09204339]
[1765218804292,8.1,135.16,135.13,6.09204339]
[1765218804492,15.49894641,135.16,135.13,6.80204339]
[1765218805012,15.49894641,135.16,135.14,6.09204339]
[1765218805304,15.49894641,135.16,135.13,6.09204339]
[1765218805481,15.49894641,135.16,135.11,6.09204339]
[1765218805482,0.68,135.15,135.11,6.09204339]
[1765218805802,0.68,135.15,135.12,6.09204339]
[1765218806586,8.07971404,135.15,135.12,6.09204339]
[1765218806792,15.49872517,135.16,135.13,6.80204339]
[1765218806983,8.1,135.16,135.15,6.09204339]
[1765218807803,8.1,135.16,135.14,6.09204339]
[1765218808835,8.1,135.16,135.14,14.20173169]
[1765218809004,8.1,135.16,135.15,6.09204339]
[1765218809495,126.90090739,135.2,135.15,6.80204339]